fUST/lending_fUST_20251105
["ID","MTS","AMOUNT","RATE_DAILY","PERIOD"]
[393119081,1762277729595,-500.0,0.00047123,120]
[393119083,1762277729680,-500.0,0.00047123,120]
[393119085,1762277729757,-500.0,0.00047123,120]
[393119087,1762277729831,-560.96990115,0.00047123,120]
[393119089,1762277729904,-500.0,0.00047123,120]
[393119091,1762277729978,-576.250798,0.00047123,120]
[393119093,1762277730047,-576.250798,0.00047123,120]
[393119095,1762277730110,-576.250798,0.00047123,120]
[393119096,1762277730170,-576.250798,0.00047123,120]
[393119098,1762277730239,-500.0,0.00047123,120]
[393119100,1762277730306,-520.679524,0.00047123,120]
[393119102,1762277730366,-1102.76,0.00047123,40]
[393119103,1762277730435,-500.0,0.00047123,120]
[393119105,1762277730499,-500.0,0.00047123,120]
[393119107,1762277730558,-292.572415,0.00047123,120]
[393119108,1762277730618,-478.48717222,0.00047123,120]
[393119110,1762277730682,-500.0,0.00047123,120]
[393119112,1762277730742,-520.679524,0.00047123,120]
[393119113,1762277730804,-502.97,0.00047123,120]
[393119115,1762277730868,-520.679524,0.00047123,120]
[393119117,1762277730935,-520.679524,0.00047123,120]
[393119119,1762277731001,-500.0,0.00047123,120]
[393119121,1762277731152,-500.0,0.00047123,120]
[393119122,1762277731222,-606.92,0.00047123,120]
[393119124,1762277731291,-172.016124,0.00047123,120]
[393119126,1762277731359,-151.0,0.00047123,30]
[393119127,1762277731418,-172.016124,0.00047123,120]
[393119129,1762277731487,-172.016124,0.00047123,120]
[393119131,1762277731552,-151.0,0.00047123,30]
[393119133,1762277731614,-172.016124,0.00047123,120]
[393119134,1762277731685,-528.42,0.00047123,60]
[393119136,1762277731752,-151.0,0.00047123,60]
[393119138,1762277731817,-800.64,0.00047123,120]
[393119139,1762277731870,-500.0,0.00047123,120]
[393119141,1762277731936,-204.9435,0.000473,120]
[393119143,1762277732002,-200.0,0.000473,120]
[393119145,1762277732066,-558955.438,0.00047444,30]
[393119146,1762277732125,-204.137264,0.00047444,120]
[393119148,1762277732194,-151.0,0.00047444,120]
[393119150,1762277732263,-221.128998,0.00047444,120]
[393119151,1762277732322,-221.128998,0.00047444,120]
[393119153,1762277732394,-221.128998,0.00047444,120]
[393119155,1762277732461,-221.129001,0.00047444,120]
[393119157,1762277732528,-151.0,0.00047444,120]
[393119158,1762277732585,-151.0,0.00047444,120]
[393119160,1762277732654,-151.0,0.00047444,120]
[393119162,1762277732718,-151.0,0.00047444,120]
[393119164,1762277732781,-151.0,0.00047444,120]
[393119165,1762277732839,-576.250798,0.00047444,120]
[393119167,1762277732908,-576.250798,0.00047444,120]
[393119169,1762277732979,-576.250798,0.00047444,120]
[393119171,1762277733054,-576.250792,0.00047444,120]
[393119172,1762277733117,-520.679524,0.00047444,120]
[393119174,1762277733191,-520.679524,0.00047444,120]
[393119176,1762277733263,-520.679524,0.00047444,120]
[393119178,1762277733336,-520.679534,0.00047444,120]
[393119180,1762277733414,-172.016124,0.00047444,120]
[393119182,1762277733479,-151.0,0.00047444,30]
[393119183,1762277733558,-172.016124,0.00047444,120]
[393119185,1762277733630,-172.016124,0.00047444,120]
[393119187,1762277733702,-151.0,0.00047444,30]
[393119189,1762277733776,-172.016128,0.00047444,120]
[393119191,1762277733841,-151.0,0.00047444,60]
[393119193,1762277733910,-1000.0,0.00047641,90]
[393119194,1762277733973,-1000.0,0.00047641,90]
[393119196,1762277734041,-500.0,0.00047671,120]
[393119197,1762277734110,-3208.33,0.00047671,120]
[393119198,1762277734179,-500.0,0.00047671,120]
[393119199,1762277734248,-500.0,0.00047671,120]
[393119200,1762277734319,-648.34077869,0.00047671,120]
[393119203,1762277734397,-618.28,0.00047671,120]
[393119206,1762277734541,-500.0,0.00047671,120]
[393119207,1762277734618,-500.0,0.00047671,120]
[393119210,1762277734694,-500.0,0.00047671,120]
[393119212,1762277734769,-500.0,0.00047671,120]
[393119214,1762277734846,-500.0,0.00047671,120]
[393119216,1762277734926,-500.0,0.00047671,120]
[393119218,1762277735004,-735.65,0.00047671,120]
[393119219,1762277735081,-1324.79,0.00047671,120]
[393119222,1762277735160,-500.0,0.00047671,120]
[393119224,1762277735239,-500.0,0.00047671,120]
[393119226,1762277735318,-856.54,0.00047671,120]
[393119228,1762277735401,-500.0,0.00047671,120]
[393119230,1762277735481,-1428.27,0.00047671,120]
[393119232,1762277735559,-171.20981299,0.00047671,120]
[393119234,1762277735641,-500.0,0.00047671,120]
[393119236,1762277735720,-1374.06,0.00047671,120]
[393119238,1762277735800,-769.28,0.00047671,120]
[393119240,1762277735879,-11325.38,0.00047671,120]
[393119242,1762277735956,-3342.65,0.00047671,120]
[393119244,1762277736035,-500.0,0.00047671,120]
[393119246,1762277736112,-500.0,0.00047671,120]
[393119248,1762277736190,-500.0,0.00047671,120]
[393119249,1762277736237,-500.0,0.00047671,120]
[393119252,1762277736284,-500.0,0.00047671,120]
[393119253,1762277736334,-500.0,0.00047671,120]
[393119255,1762277736382,-500.0,0.00047671,120]
[393119258,1762277736428,-1102.76,0.00047671,40]
[393119259,1762277736474,-500.0,0.00047671,120]
[393119261,1762277736520,-500.0,0.00047671,120]
[393119263,1762277736564,-500.0,0.00047671,120]
[393119265,1762277736612,-502.97,0.00047671,120]
[393119268,1762277736659,-500.0,0.00047671,120]
[393119270,1762277736705,-500.0,0.00047671,120]
[393119272,1762277736749,-606.92,0.00047671,120]
[393119274,1762277736796,-528.42,0.00047671,60]
[393119275,1762277736841,-800.64,0.00047671,120]
[393119277,1762277736892,-200.0,0.00047778,120]
[393119279,1762277736936,-20437.7277,0.00048,120]
[393119281,1762277736981,-1000.0,0.00048,120]
[393119284,1762277737026,-700.0,0.00048184,60]
[393119286,1762277737073,-300.0,0.00048192,60]
[393119288,1762277737122,-376.77504336,0.00048219,120]
[393119289,1762277737169,-3208.33,0.00048219,120]
[393119291,1762277737214,-219.11580673,0.00048219,120]
[393119293,1762277737263,-618.28,0.00048219,120]
[393119295,1762277737311,-500.0,0.00048219,120]
[393119297,1762277737367,-500.0,0.00048219,120]
[393119301,1762277737488,-500.0,0.00048219,120]
[393119303,1762277737531,-500.0,0.00048219,120]
[393119305,1762277737575,-500.0,0.00048219,120]
[393119307,1762277737620,-500.0,0.00048219,120]
[393119309,1762277737663,-735.65,0.00048219,120]
[393119312,1762277737706,-1324.79,0.00048219,120]
[393119314,1762277737749,-500.0,0.00048219,120]
[393119315,1762277737792,-269.20431588,0.00048219,120]
[393119318,1762277737836,-856.54,0.00048219,120]
[393119320,1762277737881,-500.0,0.00048219,120]
[393119322,1762277737927,-1428.27,0.00048219,120]
[393119324,1762277737973,-500.0,0.00048219,120]
[393119326,1762277738017,-1374.06,0.00048219,120]
[393119328,1762277738063,-769.28,0.00048219,120]
[393119330,1762277738111,-11325.38,0.00048219,120]
[393119332,1762277738158,-3342.65,0.00048219,120]
[393119334,1762277738207,-500.0,0.00048219,120]
[393119336,1762277738255,-500.0,0.00048219,120]
[393119337,1762277738302,-500.0,0.00048219,120]
[393119340,1762277738352,-500.0,0.00048219,120]
[393119342,1762277738396,-500.0,0.00048219,120]
[393119343,1762277738442,-500.0,0.00048219,120]
[393119346,1762277738486,-1102.76,0.00048219,40]
[393119348,1762277738533,-500.0,0.00048219,120]
[393119350,1762277738579,-500.0,0.00048219,120]
[393119351,1762277738627,-500.0,0.00048219,120]
[393119354,1762277738677,-502.97,0.00048219,120]
[393119356,1762277738725,-500.0,0.00048219,120]
[393119358,1762277738773,-500.0,0.00048219,120]
[393119360,1762277738824,-606.92,0.00048219,120]
[393119361,1762277738868,-528.42,0.00048219,60]
[393119363,1762277738918,-800.64,0.00048219,120]
[393119365,1762277738966,-1412.56873504,0.00048398,120]
[393119367,1762277739014,-29784.16,0.000484,30]
[393119370,1762277739062,-200.0,0.00048427,120]
[393119371,1762277739111,-3208.33,0.00048767,120]
[393119373,1762277739161,-618.28,0.00048767,120]
[393119375,1762277739210,-454.38808095,0.00048767,120]
[393119378,1762277739264,-500.0,0.00048767,120]
[393119379,1762277739318,-626.71930541,0.00048767,120]
[393119381,1762277739375,-500.0,0.00048767,120]
[393119382,1762277739422,-155.02491307,0.00048767,120]
[393119383,1762277739468,-500.0,0.00048767,120]
[393119384,1762277739513,-735.65,0.00048767,120]
[393119385,1762277739556,-1324.79,0.00048767,120]
[393119387,1762277739602,-500.0,0.00048767,120]
[393119392,1762277739739,-856.54,0.00048767,120]
[393119394,1762277739777,-500.0,0.00048767,120]
[393119396,1762277739811,-1428.27,0.00048767,120]
[393119397,1762277739849,-500.0,0.00048767,120]
[393119400,1762277739897,-1374.06,0.00048767,120]
[393119401,1762277739938,-769.28,0.00048767,120]
[393119404,1762277739981,-11325.38,0.00048767,120]
[393119405,1762277740025,-3342.65,0.00048767,120]
[393119408,1762277740070,-500.0,0.00048767,120]
[393119410,1762277740116,-500.0,0.00048767,120]
[393119412,1762277740163,-500.0,0.00048767,120]
[393119414,1762277740211,-500.0,0.00048767,120]
[393119416,1762277740258,-500.0,0.00048767,120]
[393119417,1762277740305,-500.0,0.00048767,120]
[393119419,1762277740356,-1102.76,0.00048767,40]
[393119422,1762277740402,-500.0,0.00048767,120]
[393119424,1762277740449,-500.0,0.00048767,120]
[393119426,1762277740495,-584.78332386,0.00048767,120]
[393119427,1762277740541,-502.97,0.00048767,120]
[393119430,1762277740588,-500.0,0.00048767,120]
[393119432,1762277740640,-500.0,0.00048767,120]
[393119434,1762277740687,-606.92,0.00048767,120]
[393119436,1762277740734,-528.42,0.00048767,60]
[393119437,1762277740781,-6794.05903784,0.000488,120]
[393119440,1762277740826,-1000.0,0.000488,120]
[393119442,1762277740871,-1000.0,0.000488,120]
[393119443,1762277740916,-1000.0,0.000488,120]
[393119445,1762277740961,-1000.0,0.000488,120]
[393119447,1762277741008,-1000.0,0.000488,120]
[393119450,1762277741053,-1000.0,0.000488,120]
[393119452,1762277741098,-155.660819,0.000488,60]
[393119453,1762277741146,-1000.0,0.00049,120]
[393119455,1762277741193,-1000.0,0.00049,120]
[393119458,1762277741238,-722.50453385,0.00049,120]
[393119459,1762277741283,-1496.08103606,0.00049,120]
[393119462,1762277741332,-153.0,0.00049,120]
[393119464,1762277741379,-284.58,0.00049,30]
[393119466,1762277741425,-255.7943568,0.00049245,60]
[393119468,1762277741470,-150.0,0.00049245,60]
[393119470,1762277741515,-700.0,0.0004928,60]
[393119471,1762277741560,-3208.33,0.00049315,120]
[393119473,1762277741607,-618.28,0.00049315,120]
[393119475,1762277741651,-500.0,0.00049315,120]
[393119478,1762277741698,-500.0,0.00049315,120]
[393119481,1762277741814,-500.0,0.00049315,120]
[393119483,1762277741854,-735.65,0.00049315,120]
[393119485,1762277741894,-1324.79,0.00049315,120]
[393119487,1762277741937,-500.0,0.00049315,120]
[393119489,1762277741985,-856.54,0.00049315,120]
[393119492,1762277742035,-500.0,0.00049315,120]
[393119494,1762277742080,-1428.27,0.00049315,120]
[393119496,1762277742131,-546.28172908,0.00049315,120]
[393119497,1762277742180,-1374.06,0.00049315,120]
[393119499,1762277742229,-769.28,0.00049315,120]
[393119501,1762277742277,-11325.38,0.00049315,120]
[393119503,1762277742323,-3342.65,0.00049315,120]
[393119505,1762277742375,-1777.72,0.00049315,120]
[393119507,1762277742422,-500.0,0.00049315,120]
[393119509,1762277742468,-500.0,0.00049315,120]
[393119511,1762277742514,-274.96277932,0.00049315,120]
[393119513,1762277742560,-500.0,0.00049315,120]
[393119516,1762277742610,-500.0,0.00049315,120]
[393119517,1762277742652,-500.0,0.00049315,120]
[393119520,1762277742695,-595.37359726,0.00049315,120]
[393119522,1762277742741,-1102.76,0.00049315,40]
[393119524,1762277742786,-185.90269603,0.00049315,120]
[393119526,1762277742830,-500.0,0.00049315,120]
[393119527,1762277742875,-502.97,0.00049315,120]
[393119530,1762277742922,-500.0,0.00049315,120]
[393119532,1762277742968,-292.48463271,0.00049315,120]
[393119534,1762277743013,-606.92,0.00049315,120]
[393119536,1762277743057,-528.42,0.00049315,60]
[393119538,1762277743104,-204.45,0.00049344,120]
[393119540,1762277743149,-189.12,0.00049344,120]
[393119542,1762277743194,-558955.438,0.00049444,30]
[393119544,1762277743239,-576990.05206036,0.00049444,30]
[393119547,1762277743356,265.12532229,0.00043835,120]
[393119550,1762277743419,151.0,0.00046027,120]
[393119552,1762277743498,151.0,0.00037642,31]
[393119556,1762277743622,151.0,0.00044758,120]
[393119560,1762277743705,210.946071,0.00046027,120]
[393119564,1762277743871,151.0,0.00037642,31]
[393119567,1762277743920,151.0,0.00044931,120]
[393119569,1762277744002,151.0,0.00037642,31]
[393119572,1762277744048,151.0,0.00044931,120]
[393119574,1762277744104,151.0,0.00037642,31]
[393119576,1762277744155,167.375341,0.00044931,120]
[393119578,1762277744286,429.968788,0.00037642,31]
[393119579,1762277744358,429.968788,0.00044931,120]
[393119580,1762277744460,151.0,0.00044931,120]
[393119583,1762277744529,151.0,0.00045,120]
[393119585,1762277744580,151.0,0.00043835,120]
[393119587,1762277744629,151.0,0.00043835,120]
[393119589,1762277744672,429.968788,0.00037642,31]
[393119592,1762277744715,151.0,0.00044383,120]
[393119594,1762277744761,429.968788,0.00044931,120]
[393120030,1762277782176,-265850.56278486,0.00037642,20]
[393121082,1762278144829,255.28,0.00037779,20]
[393121882,1762278632644,-1200.0,0.00021436,2]
[393121884,1762278632655,-9442.0788341,0.00021437,2]
[393121885,1762278632666,-300.0,0.00021997,2]
[393121887,1762278632676,-780.0,0.00021998,2]
[393121889,1762278632685,-500.0,0.00021999,2]
[393121890,1762278632695,-500.0,0.00021999,2]
[393121891,1762278632704,-500.0,0.00021999,2]
[393121892,1762278632713,-500.0,0.00021999,2]
[393121893,1762278632723,-500.0,0.0002238,2]
[393121894,1762278632732,-500.0,0.0002238,2]
[393121895,1762278632741,-500.0,0.0002238,2]
[393121896,1762278632750,-500.0,0.0002238,2]
[393121897,1762278632760,-500.0,0.0002238,2]
[393121898,1762278632770,-500.0,0.0002238,2]
[393121899,1762278632780,-500.0,0.0002238,2]
[393121900,1762278632789,-504.26570883,0.0002238,2]
[393121901,1762278632799,-500.0,0.0002238,2]
[393121902,1762278632810,-334.95154104,0.0002238,2]
[393121903,1762278632819,-16980.13968849,0.0002238,2]
[393121904,1762278632828,-519.3,0.000224,2]
[393121905,1762278632838,-519.3,0.000224,2]
[393121906,1762278632847,-519.3,0.000224,2]
[393121907,1762278632857,-519.3,0.000224,2]
[393121908,1762278632866,-519.3,0.000224,2]
[393121909,1762278632875,-519.3,0.000224,2]
[393121910,1762278632884,-519.3,0.000224,2]
[393121911,1762278632894,-519.3,0.000224,2]
[393121912,1762278632904,-519.3,0.000224,2]
[393121913,1762278632914,-519.3,0.000224,2]
[393121914,1762278632924,-500.0,0.00022437,2]
[393121915,1762278632934,-300.0,0.00022438,20]
[393121916,1762278632945,-300.0,0.00022438,20]
[393121917,1762278632955,-300.0,0.00022438,20]
[393121918,1762278632964,-300.0,0.00022438,20]
[393121919,1762278632974,-300.0,0.00022438,20]
[393121920,1762278632985,-300.0,0.00022438,20]
[393121921,1762278632995,-300.0,0.00022438,20]
[393121922,1762278633004,-300.0,0.00022438,20]
[393121923,1762278633014,-300.0,0.00022438,20]
[393121924,1762278633024,-300.0,0.00022438,20]
[393121925,1762278633034,-300.0,0.00022438,20]
[393121926,1762278633044,-300.0,0.00022438,20]
[393121927,1762278633054,-300.0,0.00022438,20]
[393121928,1762278633065,-300.0,0.00022438,20]
[393121929,1762278633076,-300.0,0.00022438,20]
[393121930,1762278633085,-502.07679343,0.00022473,2]
[393121931,1762278633094,-575.80764345,0.00022473,2]
[393121932,1762278633104,-506.00400073,0.00022473,2]
[393121933,1762278633114,-638.72337059,0.00022473,2]
[393121934,1762278633124,-500.0,0.00022473,2]
[393121935,1762278633134,-500.0,0.00022473,2]
[393121936,1762278633143,-500.0,0.00022473,2]
[393121937,1762278633152,-500.0,0.00022473,2]
[393121938,1762278633162,-1000.0,0.00022928,2]
[393121939,1762278633171,-500.0,0.00022928,2]
[393121940,1762278633181,-502.47018433,0.00022928,2]
[393121941,1762278633190,-503.42544669,0.00022928,2]
[393121942,1762278633200,-1012.2650542,0.00022928,2]
[393121943,1762278633211,-521.22293429,0.00022928,2]
[393121944,1762278633220,-1000.0,0.00022928,2]
[393121945,1762278633229,-1012.37879781,0.00022928,2]
[393121946,1762278633238,-500.0,0.00022929,2]
[393121947,1762278633248,-500.0,0.00023021,2]
[393121948,1762278633258,-500.0,0.00023021,2]
[393121949,1762278633268,-1006.57234157,0.00023021,2]
[393121950,1762278633279,-500.0,0.00023021,2]
[393121951,1762278633288,-1680.0,0.00023417,2]
[393121952,1762278633299,-1500.0,0.00023476,2]
[393121953,1762278633310,-1500.0,0.00023476,2]
[393121954,1762278633320,-1044.73114612,0.00023477,2]
[393121955,1762278633329,-500.0,0.00023748,2]
[393121956,1762278633340,-500.0,0.00023749,2]
[393121957,1762278633350,-500.0,0.0002375,2]
[393121958,1762278633359,-310.28608131,0.0002375,2]
[393121959,1762278633369,-420.0,0.00023903,2]
[393121960,1762278633378,-600.0,0.00023969,20]
[393121961,1762278633387,-565.59758516,0.00023973,2]
[393121962,1762278633398,-2000.0,0.00024024,2]
[393121963,1762278633408,-160.0,0.00024027,2]
[393121964,1762278633418,-2500.0,0.00024572,2]
[393121965,1762278633428,-260.0,0.00024575,2]
[393121966,1762278633438,-741.79591725,0.000248,2]
[393121967,1762278633447,-184.8726376,0.00025018,2]
[393121968,1762278633457,-222.94348854,0.00025049,2]
[393121969,1762278633468,-2317.49554358,0.0002512,2]
[393121970,1762278633478,-360.0,0.00025123,2]
[393121971,1762278633488,-503.76330413,0.00025267,2]
[393121972,1762278633498,-500.0,0.00025267,2]
[393121973,1762278633508,-500.0,0.00025267,2]
[393121974,1762278633518,-500.0,0.00025267,2]
[393121975,1762278633529,-353.37776186,0.00025267,2]
[393121976,1762278633539,-500.9181771,0.00025267,2]
[393121977,1762278633549,-2351.0,0.00025582,2]
[393121978,1762278633561,-460.0,0.00025671,2]
[393121979,1762278633572,-1000.0,0.00025815,2]
[393121980,1762278633582,-502.58363596,0.00025815,2]
[393121981,1762278633592,-743.1439385,0.00025815,2]
[393121982,1762278633601,-587.0,0.00025975,2]
[393121983,1762278633614,-300.0,0.00026,2]
[393121984,1762278633626,-1313.14,0.00026099,10]
[393121985,1762278633635,-1575.77,0.000261,10]
[393121986,1762278633645,-1094.28,0.000261,10]
[393121987,1762278633656,-500.0,0.00026108,2]
[393121988,1762278633665,-500.0,0.00026109,2]
[393121989,1762278633675,-21274.12388174,0.0002611,2]
[393121990,1762278633686,-500.0,0.00026173,2]
[393121991,1762278633695,-500.0,0.00026173,2]
[393121992,1762278633705,-500.0,0.00026173,2]
[393121993,1762278633714,-500.0,0.00026173,2]
[393121994,1762278633724,-500.0,0.00026173,2]
[393121995,1762278633734,-500.0,0.00026173,2]
[393121996,1762278633744,-500.0,0.00026173,2]
[393121997,1762278633753,-560.0,0.00026219,2]
[393121998,1762278633762,-500.0,0.00026363,2]
[393121999,1762278633771,-720.0,0.00026366,30]
[393122000,1762278633780,-842.78,0.00026502,3]
[393122001,1762278633790,-421.39,0.00026502,3]
[393122002,1762278633798,-210.7,0.00026502,3]
[393122003,1762278633808,-632.11,0.00026502,3]
[393122004,1762278633819,-43686.2884638,0.00026512,2]
[393122005,1762278633829,-382.41379697,0.00026512,2]
[393122006,1762278633838,-500.0,0.00026544,2]
[393122007,1762278633848,-505.76202787,0.00026573,2]
[393122008,1762278633858,-534.04655029,0.00026573,2]
[393122009,1762278633868,-500.0,0.00026573,2]
[393122010,1762278633878,-500.0,0.00026573,2]
[393122011,1762278633889,-500.0,0.00026573,2]
[393122012,1762278633899,-500.0,0.00026573,2]
[393122013,1762278633908,-500.84179656,0.00026573,2]
[393122014,1762278633919,-500.0,0.00026573,2]
[393122015,1762278633929,-503.44920238,0.00026573,2]
[393122016,1762278633939,-500.242094,0.00026573,2]
[393122017,1762278633950,-502.48442456,0.00026573,2]
[393122018,1762278633960,-500.90071052,0.00026573,2]
[393122019,1762278633970,-500.0,0.00026573,2]
[393122020,1762278633979,-500.0,0.00026573,2]
[393122021,1762278633990,-500.0,0.00026573,2]
[393122022,1762278634000,-502.75793603,0.00026573,2]
[393122023,1762278634009,-218.0731856,0.00026573,2]
[393122024,1762278634020,-500.0,0.00026573,2]
[393122025,1762278634030,-500.0,0.00026573,2]
[393122026,1762278634039,-502.01618335,0.00026573,2]
[393122027,1762278634050,-500.0,0.00026573,2]
[393122028,1762278634063,-501.18219536,0.00026573,2]
[393122029,1762278634073,-500.0,0.00026573,2]
[393122030,1762278634082,-503.66522938,0.00026573,2]
[393122031,1762278634091,-502.56019866,0.00026721,2]
[393122032,1762278634101,-1000.0,0.00026721,2]
[393122033,1762278634110,-491.86843052,0.00026721,2]
[393122034,1762278634121,-660.0,0.00026767,2]
[393122035,1762278634130,-185.00227265,0.000268,2]
[393122036,1762278634139,-741.79591725,0.00026886,3]
[393122037,1762278634150,-164.22,0.000269,7]
[393122038,1762278634160,-177.02424381,0.0002699,2]
[393122039,1762278634169,-1000.0,0.00027121,2]
[393122040,1762278634179,-503.57439604,0.00027121,2]
[393122041,1762278634188,-1013.26326079,0.00027121,2]
[393122042,1762278634198,-504.51902314,0.00027121,2]
[393122043,1762278634208,-1000.0,0.00027121,2]
[393122044,1762278634218,-503.64909604,0.00027121,2]
[393122045,1762278634229,-1000.0,0.00027121,2]
[393122046,1762278634239,-1006.06308179,0.00027121,2]
[393122047,1762278634248,-1000.0,0.00027121,2]
[393122048,1762278634258,-355.66397633,0.00027121,2]
[393122049,1762278634268,-1004.25568302,0.00027121,2]
[393122050,1762278634278,-408.6537309,0.00027314,2]
[393122051,1762278634288,-760.0,0.00027315,2]
[393122052,1762278634297,-438.14904029,0.00027383,2]
[393122053,1762278634307,-500.0,0.000276,5]
[393122054,1762278634318,-500.0,0.000276,5]
[393122055,1762278634328,-1500.0,0.00027668,5]
[393122056,1762278634338,-501.3396096,0.00027668,5]
[393122057,1762278634348,-492.21,0.00027819,2]
[393122058,1762278634358,-860.0,0.00027863,2]
[393122059,1762278634368,-1685.56,0.00027872,3]
[393122060,1762278634379,-842.78,0.00027872,3]
[393122061,1762278634388,-421.4,0.00027872,3]
[393122062,1762278634399,-23692.39,0.000279,7]
[393122063,1762278634409,-716.0,0.00027946,2]
[393122064,1762278634419,-399.46520389,0.00028,10]
[393122065,1762278634429,-508.73394242,0.00028148,5]
[393122066,1762278634439,-1007.21552246,0.00028148,5]
[393122067,1762278634449,-2000.0,0.00028216,5]
[393122068,1762278634458,-823.0,0.00028226,2]
[393122069,1762278634469,-960.0,0.00028411,2]
[393122070,1762278634580,-163.0,0.00028521,14]
[393122071,1762278634591,-152.32534317,0.00028619,7]
[393122072,1762278634602,-2000.0,0.00028764,5]
[393122073,1762278634613,-399.46520389,0.00028914,2]
[393122074,1762278634626,-160.0,0.00028914,2]
[393122075,1762278634636,-160.0,0.00028914,2]
[393122076,1762278634646,-1219.20838866,0.00028959,2]
[393122077,1762278634656,-741.79591725,0.00028972,4]
[393122078,1762278634666,-864.0,0.00029002,30]
[393122079,1762278634675,-205.74948826,0.0002902,2]
[393122080,1762278634685,-164.22,0.000291,7]
[393122081,1762278634696,-154.863149,0.00029532,20]
[393122082,1762278634707,-205.74948825,0.00029797,30]
[393122083,1762278634716,-23692.39,0.000298,7]
[393122084,1762278634726,-1580.33,0.000301,14]
[393122085,1762278634736,-185.00227264,0.00030324,2]
[393122086,1762278634746,-210.19754519,0.0003041,14]
[393122087,1762278634756,-183.0,0.00030673,2]
[393122088,1762278634766,-164.69938,0.00030848,20]
[393122089,1762278634776,-154.863149,0.00030848,20]
[393122090,1762278634786,-180.015,0.00030979,27]
[393122091,1762278634795,-741.79591725,0.00031058,5]
[393122092,1762278634805,-1000.0,0.00031903,30]
[393122093,1762278634817,-164.69938,0.00032164,20]
[393122094,1762278634826,-154.309614,0.00032164,20]
[393122095,1762278634836,-154.863149,0.00032164,20]
[393122096,1762278634846,-172.017187,0.00032164,20]
[393122097,1762278634856,-1580.33,0.000323,14]
[393122098,1762278634866,-23692.39,0.000323,7]
[393122099,1762278634875,-223.16643203,0.00033143,7]
[393122100,1762278634884,-742.53771317,0.00033143,7]
[393122101,1762278634894,-185.05751024,0.00033186,7]
[393122102,1762278634903,-184.3278837,0.000332,117]
[393122103,1762278634912,-185.00227264,0.00033849,2]
[393122104,1762278634922,-161.0,0.0003399,3]
[393122105,1762278634932,-203.48666513,0.00035,2]
[393122106,1762278634941,-150.94,0.00035037,60]
[393122107,1762278634951,-150.94,0.00035039,60]
[393122108,1762278634960,-150.94,0.00035039,60]
[393122109,1762278634970,-1000.0,0.00035093,30]
[393122110,1762278634979,-244.0,0.00035093,30]
[393122111,1762278634989,-808.0228749,0.00035111,4]
[393122112,1762278634999,-150.94,0.00035137,60]
[393122113,1762278635009,-150.94,0.00035139,60]
[393122114,1762278635018,-150.94,0.00035139,60]
[393122115,1762278635027,-150.94,0.00035237,60]
[393122116,1762278635037,-150.94,0.00035239,60]
[393122117,1762278635051,-150.94,0.00035239,60]
[393122118,1762278635063,-463.0,0.00035318,2]
[393122119,1762278635073,-43686.2884638,0.00035329,3]
[393122120,1762278635083,-382.41379697,0.00035329,3]
[393122121,1762278635094,-150.94,0.00035337,60]
[393122122,1762278635104,-150.94,0.00035339,60]